fUSD/lending_fUSD_20250620
["ID","MTS","AMOUNT","RATE_DAILY","PERIOD"]
[366796984,1750461065801,-395.26179875,0.00024931,4]
[366796985,1750461065811,-490.0,0.00024931,4]
[366796986,1750461065821,-490.0,0.00024931,4]
[366796987,1750461065831,-490.0,0.00024931,4]
[366796988,1750461065841,-490.0,0.00024931,4]
[366796989,1750461065851,-490.0,0.00024931,4]
[366796990,1750461065861,-490.0,0.00024931,4]
[366796991,1750461065872,-249.39,0.00024931,4]
[366796992,1750461065883,-490.0,0.00024931,4]
[366796993,1750461065894,-490.0,0.00024931,4]
[366796994,1750461065903,-210.0,0.00024931,4]
[366796995,1750461065914,-490.0,0.00024931,4]
[366796996,1750461065925,-490.0,0.00024931,4]
[366796997,1750461065936,-490.0,0.00024931,4]
[366796998,1750461065949,-210.0,0.00024931,4]
[366796999,1750461065960,-490.0,0.00024931,4]
[366797000,1750461065971,-391.86238221,0.00024931,4]
[366797001,1750461065983,-490.0,0.00024931,4]
[366797002,1750461065995,-115.9423944,0.00024931,4]
[366797003,1750461066696,-374.0576056,0.00024931,4]
[366797004,1750461066706,-210.0,0.00024931,4]
[366797005,1750461066715,-490.0,0.00024931,4]
[366797006,1750461066725,-490.0,0.00024931,4]
[366797007,1750461066734,-72.53283317,0.00024931,4]
[366797008,1750461066746,-137.46716683,0.00024931,4]
[366797009,1750461066756,-217.55133316,0.00024931,4]
[366797010,1750461067794,-490.0,0.00024657,2]
[366797011,1750461067806,-159.77887564,0.00024657,2]
[366797012,1750461067866,-502.49912,0.00024657,2]
[366797013,1750461067955,-19.45200436,0.00024657,2]
[366797014,1750461067964,-166.60346163,0.00024657,2]
[366797015,1750461067973,-158.474524,0.000249,2]
[366797016,1750461067983,-272.44866684,0.00024931,4]
[366797017,1750461067992,-490.0,0.00024931,4]
[366797018,1750461068001,-490.0,0.00024931,4]
[366797019,1750461068011,-555.32,0.00024931,4]
[366797020,1750461068020,-653.11,0.00024931,4]
[366797021,1750461068029,-490.0,0.00024931,4]
[366797022,1750461068038,-490.0,0.00024931,4]
[366797023,1750461068050,-490.0,0.00024931,4]
[366797024,1750461068059,-490.0,0.00024931,4]
[366797025,1750461068069,-142.74738112,0.00024931,4]
[366797026,1750461068194,-2041.0,0.00024532,2]
[366797027,1750461068203,-490.0,0.00024657,2]
[366797028,1750461068214,-67.25261888,0.00024931,4]
[366797029,1750461068224,-559.64,0.00024931,4]
[366797030,1750461068234,-490.0,0.00024931,4]
[366797031,1750461068244,-490.0,0.00024931,4]
[366797032,1750461068253,-490.0,0.00024931,4]
[366797033,1750461068263,-145.1073811,0.00024931,4]
[366797034,1750461072842,200.0,0.00022381,2]
[366797035,1750461131712,202.0,0.00022381,2]
[366797039,1750461237374,523704.90447164,0.00023,2]
[366797040,1750461237400,202471.53024678,0.00023,2]
[366797041,1750461508582,2110.0,0.00022399,2]
[366797042,1750461509572,2110.0,0.00022899,2]
[366797043,1750461725963,200.0,0.000247,120]
[366797045,1750461850960,168.13,0.00013699,2]
[366797046,1750461851183,168.13,0.00020187,2]
[366797047,1750461930205,526.65,0.000199,2]
[366797048,1750461959077,68061.40900816,0.000221,5]
[366797049,1750462076973,1406.0,0.000247,120]
[366797050,1750462077782,154.0,0.000247,120]
[366797051,1750462121425,1724384.15074506,0.00023,2]
[366797052,1750462121452,2000000.0,0.00023,2]
[366797053,1750462121481,876296.24112802,0.00023,2]
[366797054,1750462121509,12726.80279081,0.00023,2]
[366797055,1750462121534,20000.0,0.00023,2]
[366797056,1750462121558,20000.0,0.00023,2]
[366797057,1750462121582,20000.0,0.00023,2]
[366797058,1750462121605,20000.0,0.00023,2]
[366797059,1750462121630,7909.05201809,0.00023,2]
[366797060,1750462126253,10106.82046038,0.0002,2]
[366797063,1750462137430,498.0,0.000247,120]
[366797073,1750462191373,1058.0,0.000247,120]
[366797076,1750462231493,-666.12855778,0.000232,2]
[366797078,1750462231504,-205.0,0.00023341,2]
[366797079,1750462231515,-300.0,0.00023353,2]
[366797080,1750462231524,-200.0,0.00023365,7]
[366797081,1750462231535,-2110.0,0.00023399,2]
[366797082,1750462231545,-648.42,0.0002341,2]
[366797083,1750462231556,-1000.0,0.00023504,2]
[366797084,1750462231566,-1221.0,0.00023532,2]
[366797085,1750462231577,-1000.0,0.00023582,2]
[366797086,1750462231586,-231.92,0.00023704,2]
[366797087,1750462231597,-1200.0,0.00023835,2]
[366797088,1750462231607,-143.80837219,0.00023836,2]
[366797089,1750462231619,-272.97258562,0.00023836,2]
[366797090,1750462231632,-59.61904219,0.00023836,2]
[366797091,1750462231642,-600.0,0.00023898,2]
[366797092,1750462231652,-300.0,0.00023898,2]
[366797093,1750462231662,-971.6754567,0.00023899,2]
[366797094,1750462231675,-562.76417773,0.00023899,2]
[366797095,1750462231691,-429.81070134,0.00023899,2]
[366797096,1750462231703,-145.74966423,0.00023899,2]
[366797097,1750462231712,-250.0,0.00023936,2]
[366797098,1750462231722,-461.86,0.00024,2]
[366797099,1750462231732,-1957.85600001,0.00024037,2]
[366797100,1750462231742,-65.94532056,0.00024037,2]
[366797101,1750462231754,-141.45467944,0.00024037,2]
[366797102,1750462231765,-261.43027267,0.00024041,2]
[366797103,1750462231778,-200.42972733,0.00024041,2]
[366797104,1750462231788,-234.14750929,0.0002405,2]
[366797105,1750462231800,-65.85249071,0.0002405,2]
[366797106,1750462231810,-797.92,0.00024052,2]
[366797107,1750462231820,-1608.25,0.00024052,2]
[366797108,1750462231829,-797.92,0.000241,2]
[366797109,1750462231840,-967.57,0.00024164,2]
[366797110,1750462231850,-720.0,0.00024305,2]
[366797111,1750462231859,-166.72,0.00024306,2]
[366797112,1750462231869,-2110.0,0.00024399,2]
[366797113,1750462231880,-797.92,0.000244,2]
[366797114,1750462231889,-797.92,0.000244,2]
[366797115,1750462231899,-201.296527,0.000244,2]
[366797116,1750462231909,-1000.0,0.00024466,2]
[366797117,1750462231919,-1000.0,0.00024557,2]
[366797119,1750462231928,-272.3229,0.00024557,2]
[366797121,1750462231939,-516.9595,0.00024557,2]
[366797123,1750462231949,-430.05333874,0.00024557,2]
[366797125,1750462231960,-5877.70597938,0.00024557,2]
[366797126,1750462231970,-295.94829932,0.00024557,2]
[366797129,1750462231980,-200.91872167,0.00024557,2]
[366797130,1750462231991,-220.09921995,0.00024596,2]
[366797132,1750462232002,-797.92,0.000246,2]
[366797134,1750462232012,-430.05333863,0.00024607,2]
[366797136,1750462232023,-151.0,0.00024627,2]
[366797138,1750462232032,-151.0,0.00024627,2]
[366797140,1750462232044,-500.0,0.00024627,2]
[366797142,1750462232054,-151.0,0.00024627,2]
[366797144,1750462232064,-500.0,0.00024627,2]
[366797146,1750462232074,-500.0,0.00024627,2]
[366797148,1750462232085,-500.0,0.00024627,2]
[366797149,1750462232095,-500.0,0.00024627,2]
[366797150,1750462232105,-500.0,0.00024627,2]
[366797151,1750462232115,-334.2703167,0.00024627,2]
[366797152,1750462232129,-165.7296833,0.00024627,2]
[366797153,1750462232140,-500.0,0.00024627,2]
[366797154,1750462232151,-500.0,0.00024627,2]
[366797155,1750462232162,-500.0,0.00024627,2]
[366797156,1750462232171,-500.0,0.00024627,2]
[366797157,1750462232181,-500.0,0.00024627,2]
[366797158,1750462232191,-500.0,0.00024627,2]
[366797159,1750462232201,-151.0,0.00024627,2]
[366797160,1750462232212,-500.0,0.00024627,2]
[366797161,1750462232224,-500.0,0.00024627,2]
[366797162,1750462232238,-500.0,0.00024627,2]
[366797163,1750462232249,-500.0,0.00024627,2]
[366797164,1750462232259,-151.0,0.00024627,2]
[366797165,1750462232269,-500.0,0.00024627,2]
[366797166,1750462232279,-151.0,0.00024627,2]
[366797167,1750462232289,-55.0803167,0.00024627,2]
[366797168,1750462232324,-444.9196833,0.00024627,2]
[366797169,1750462232334,-482.10773108,0.00024627,2]
[366797170,1750462232346,-17.89226892,0.00024627,2]
[366797171,1750462232357,-500.0,0.00024627,2]
[366797172,1750462232367,-500.0,0.00024627,2]
[366797173,1750462232377,-151.0,0.00024627,2]
[366797174,1750462232387,-151.0,0.00024627,2]
[366797175,1750462232397,-500.0,0.00024627,2]
[366797176,1750462232408,-500.0,0.00024627,2]
[366797177,1750462232418,-500.0,0.00024627,2]
[366797178,1750462232427,-500.0,0.00024627,2]
[366797179,1750462232437,-151.0,0.00024627,2]
[366797180,1750462232447,-151.0,0.00024627,2]
[366797181,1750462232457,-500.0,0.00024627,2]
[366797182,1750462232467,-500.0,0.00024627,2]
[366797183,1750462232477,-500.0,0.00024627,2]
[366797184,1750462232487,-225.0,0.00024627,2]
[366797185,1750462232497,-500.0,0.00024627,2]
[366797186,1750462232507,-500.0,0.00024627,2]
[366797187,1750462232517,-151.0,0.00024627,2]
[366797188,1750462232527,-500.0,0.00024627,2]
[366797189,1750462232537,-500.0,0.00024627,2]
[366797190,1750462232547,-500.0,0.00024627,2]
[366797191,1750462232556,-500.0,0.00024627,2]
[366797192,1750462232566,-151.0,0.00024627,2]
[366797193,1750462232576,-500.0,0.00024627,2]
[366797194,1750462232586,-500.0,0.00024627,2]
[366797195,1750462232595,-500.0,0.00024627,2]
[366797196,1750462232606,-500.0,0.00024627,2]
[366797197,1750462232616,-151.0,0.00024627,2]
[366797198,1750462232626,-500.0,0.00024627,2]
[366797199,1750462232636,-500.0,0.00024627,2]
[366797200,1750462232646,-500.0,0.00024627,2]
[366797201,1750462232656,-151.0,0.00024627,2]
[366797202,1750462232665,-507.56178389,0.00024627,2]
[366797203,1750462232675,-500.0,0.00024627,2]
[366797204,1750462232690,-500.0,0.00024627,2]
[366797205,1750462232700,-668.65185757,0.00024627,2]
[366797206,1750462232709,-151.0,0.00024627,2]
[366797207,1750462232719,-374.49408962,0.00024648,4]
[366797208,1750462232736,-46660.63190182,0.00024648,4]
[366797209,1750462232748,-1138.48394207,0.00024648,4]
[366797210,1750462232760,-12163.77459267,0.00024648,4]
[366797212,1750462237405,-790.11199992,0.00024648,4]
[366797213,1750462237425,-1193.90317689,0.00024648,4]
[366797214,1750462237438,-1005.53633986,0.00024648,4]
[366797215,1750462237531,-448.9476935,0.00024648,4]
[366797216,1750462237556,-2927.9007333,0.00024648,4]
[366797221,1750462239682,-4999.8,0.00024557,2]
[366797222,1750462239694,-138891.9913,0.00024648,4]
[366797223,1750462239707,-62421.35041565,0.00024648,4]
[366797224,1750462239728,-152612.53888384,0.00024648,4]
[366797225,1750462239738,-265125.77484668,0.00024648,2]
[366797226,1750462239748,-500.0,0.00024656,2]
[366797227,1750462239758,-500.0,0.00024656,2]
[366797228,1750462239769,-500.0,0.00024656,2]
[366797229,1750462239780,-500.0,0.00024656,2]
[366797230,1750462239790,-500.0,0.00024656,2]
[366797231,1750462239799,-638.74180066,0.00024656,2]
[366797232,1750462239810,-544.13450724,0.00024656,2]
[366797233,1750462239820,-500.0,0.00024656,2]
[366797234,1750462239829,-500.0,0.00024656,2]
[366797235,1750462239840,-221.87143625,0.00024656,2]
[366797236,1750462239850,-500.0,0.00024656,2]
[366797237,1750462239860,-223.71037213,0.00024656,2]
[366797238,1750462239869,-500.0,0.00024656,2]
[366797239,1750462239880,-205.14005729,0.00024656,2]
[366797240,1750462239890,-430.05333863,0.00024656,2]
[366797241,1750462239900,-378.97623004,0.00024657,2]
[366797242,1750462239909,-151.0,0.00024657,7]
[366797243,1750462239919,-151.0,0.00024657,7]
[366797244,1750462239929,-151.0,0.00024657,7]
[366797245,1750462239939,-511.24927954,0.00024657,2]
[366797246,1750462239949,-420.0,0.00024657,2]
[366797247,1750462239959,-218.65677032,0.00024657,2]
[366797249,1750462239969,-490.0,0.00024657,2]
[366797250,1750462239978,-151.0,0.00024657,7]
[366797251,1750462239987,-151.0,0.00024657,7]
[366797252,1750462239997,-151.0,0.00024657,7]
[366797253,1750462240007,-490.0,0.00024657,2]
[366797254,1750462240017,-151.0,0.00024657,7]
[366797255,1750462240027,-151.0,0.00024657,7]
[366797256,1750462240036,-210.0,0.00024657,2]
[366797257,1750462240046,-151.0,0.00024657,7]
[366797258,1750462240055,-210.0,0.00024657,2]
[366797259,1750462240066,-490.0,0.00024657,2]
[366797260,1750462240075,-500.0,0.00024657,2]
[366797261,1750462240085,-210.0,0.00024657,2]
[366797262,1750462240097,-490.0,0.00024657,2]
[366797263,1750462240107,-432.79503237,0.00024657,2]
[366797264,1750462240117,-490.0,0.00024657,2]
[366797265,1750462240127,-490.0,0.00024657,2]
[366797266,1750462240137,-308.35889541,0.00024657,2]
[366797267,1750462240148,-490.0,0.00024657,2]
[366797268,1750462240157,-490.0,0.00024657,2]
[366797269,1750462240167,-210.0,0.00024657,2]
[366797270,1750462240177,-490.0,0.00024657,2]
[366797271,1750462240187,-490.0,0.00024657,2]
[366797272,1750462240196,-490.0,0.00024657,2]
[366797273,1750462240206,-490.0,0.00024657,2]
[366797274,1750462240217,-490.0,0.00024657,2]
[366797275,1750462240227,-490.0,0.00024657,2]
[366797276,1750462240237,-490.0,0.00024657,2]
[366797277,1750462240246,-282.586008,0.00024657,7]
[366797278,1750462240256,-282.586008,0.00024657,7]
[366797279,1750462240266,-490.0,0.00024657,2]
[366797280,1750462240276,-282.586008,0.00024657,7]
[366797281,1750462240285,-282.586008,0.00024657,7]
[366797282,1750462240296,-282.586008,0.00024657,7]
[366797283,1750462240306,-282.586008,0.00024657,7]
[366797284,1750462240315,-280.0,0.00024657,2]
[366797285,1750462240326,-490.0,0.00024657,2]
[366797286,1750462240335,-280.0,0.00024657,2]
[366797287,1750462240345,-490.0,0.00024657,2]
[366797288,1750462240355,-490.0,0.00024657,2]
[366797289,1750462240365,-350.0,0.00024657,2]
[366797290,1750462240374,-490.0,0.00024657,2]
[366797291,1750462240386,-490.0,0.00024657,2]
[366797292,1750462240396,-490.0,0.00024657,2]
[366797293,1750462240406,-490.0,0.00024657,2]
[366797294,1750462240416,-350.0,0.00024657,2]
[366797295,1750462240426,-490.0,0.00024657,2]
[366797296,1750462240435,-490.0,0.00024657,2]
[366797297,1750462240445,-350.0,0.00024657,2]
[366797298,1750462240455,-350.0,0.00024657,2]
[366797299,1750462240464,-490.0,0.00024657,2]
[366797300,1750462240474,-280.0,0.00024657,2]
[366797301,1750462240483,-490.0,0.00024657,2]
[366797302,1750462240493,-490.0,0.00024657,2]
[366797303,1750462240503,-490.0,0.00024657,2]
[366797304,1750462240512,-280.0,0.00024657,2]
[366797305,1750462240778,-490.0,0.00024657,2]
[366797306,1750462240796,-490.0,0.00024657,2]
[366797307,1750462240807,-490.0,0.00024657,2]
[366797308,1750462240817,-490.0,0.00024657,2]
[366797309,1750462240827,-490.0,0.00024657,2]
[366797310,1750462240837,-490.0,0.00024657,2]
[366797311,1750462240847,-235.20001975,0.00024657,2]
[366797312,1750462240858,-490.0,0.00024657,2]
[366797313,1750462240868,-630.0,0.00024657,2]
[366797314,1750462240878,-490.0,0.00024657,2]
[366797315,1750462240888,-490.0,0.00024657,2]
[366797316,1750462240899,-490.0,0.00024657,2]
[366797317,1750462240909,-490.0,0.00024657,2]
[366797318,1750462240919,-490.0,0.00024657,2]
[366797319,1750462240929,-204.3326806,0.00024657,2]
[366797320,1750462240942,-490.0,0.00024657,2]
[366797321,1750462240952,-423.529522,0.00024657,7]
[366797322,1750462240964,-490.0,0.00024657,2]
[366797323,1750462240974,-490.0,0.00024657,2]
[366797324,1750462240984,-423.529522,0.00024657,7]
[366797325,1750462240994,-423.529522,0.00024657,7]
[366797326,1750462241004,-490.0,0.00024657,2]
[366797327,1750462241014,-490.0,0.00024657,2]
[366797328,1750462241024,-490.0,0.00024657,2]
[366797329,1750462241034,-423.529522,0.00024657,7]
[366797330,1750462241044,-423.529522,0.00024657,7]
[366797331,1750462241055,-490.0,0.00024657,2]
[366797332,1750462241065,-423.529522,0.00024657,7]
[366797333,1750462241075,-490.0,0.00024657,2]
[366797334,1750462241088,-490.0,0.00024657,2]
[366797335,1750462241098,-490.0,0.00024657,2]
[366797336,1750462241107,-490.0,0.00024657,2]
[366797337,1750462241118,-490.0,0.00024657,2]
[366797338,1750462241128,-490.0,0.00024657,2]
[366797339,1750462241138,-490.0,0.00024657,2]
[366797340,1750462241148,-490.0,0.00024657,2]
[366797341,1750462241158,-490.0,0.00024657,2]
[366797342,1750462241168,-490.0,0.00024657,2]
[366797343,1750462241178,-490.0,0.00024657,2]
[366797344,1750462241194,-490.0,0.00024657,2]
[366797345,1750462241204,-300.0,0.00024657,2]
[366797346,1750462241214,-490.0,0.00024657,2]
[366797347,1750462241224,-490.0,0.00024657,2]
[366797348,1750462241235,-490.0,0.00024657,2]
[366797349,1750462241246,-490.0,0.00024657,2]
[366797350,1750462241256,-490.0,0.00024657,2]
[366797351,1750462241267,-490.0,0.00024657,2]
[366797352,1750462241277,-490.0,0.00024657,2]
[366797353,1750462241287,-490.0,0.00024657,2]
[366797354,1750462241298,-490.0,0.00024657,2]
[366797355,1750462241308,-490.0,0.00024657,2]
[366797356,1750462241319,-490.0,0.00024657,2]
[366797357,1750462241330,-1090.649831,0.00024657,7]
[366797358,1750462241340,-1090.649831,0.00024657,7]
[366797359,1750462241350,-200.0,0.00024657,2]
[366797360,1750462241360,-1090.649831,0.00024657,7]
[366797361,1750462241371,-200.0,0.00024657,2]
[366797362,1750462241382,-200.0,0.00024657,2]
[366797363,1750462241392,-200.0,0.00024657,2]
[366797364,1750462241403,-490.0,0.00024657,2]
[366797365,1750462241413,-490.0,0.00024657,2]
[366797366,1750462241424,-490.0,0.00024657,2]
[366797367,1750462241435,-1090.649831,0.00024657,7]
[366797368,1750462241446,-1090.649831,0.00024657,7]
[366797369,1750462241457,-1090.649831,0.00024657,7]
[366797370,1750462241467,-490.0,0.00024657,2]
[366797371,1750462241478,-280.0,0.00024657,2]
[366797372,1750462241489,-490.0,0.00024657,2]
[366797373,1750462241500,-350.0,0.00024657,2]
[366797374,1750462241511,-490.0,0.00024657,2]
[366797375,1750462241522,-490.0,0.00024657,2]
[366797376,1750462241532,-490.0,0.00024657,2]
[366797377,1750462241543,-490.0,0.00024657,2]
[366797378,1750462241553,-490.0,0.00024657,2]
[366797379,1750462241564,-490.0,0.00024657,2]
[366797380,1750462241574,-490.0,0.00024657,2]
[366797381,1750462241584,-490.0,0.00024657,2]
[366797382,1750462241595,-490.0,0.00024657,2]
[366797383,1750462241606,-490.0,0.00024657,2]
[366797384,1750462241616,-490.0,0.00024657,2]
[366797385,1750462241628,-490.0,0.00024657,2]
[366797386,1750462241638,-490.0,0.00024657,2]
[366797387,1750462241653,-350.0,0.00024657,2]
[366797388,1750462241664,-490.0,0.00024657,2]
[366797389,1750462241674,-490.0,0.00024657,2]
[366797390,1750462241686,-350.0,0.00024657,2]
[366797391,1750462241696,-490.0,0.00024657,2]
[366797392,1750462241706,-490.0,0.00024657,2]
[366797393,1750462241717,-490.0,0.00024657,2]
[366797394,1750462241727,-490.0,0.00024657,2]
[366797395,1750462241738,-490.0,0.00024657,2]
[366797396,1750462241748,-490.0,0.00024657,2]
[366797397,1750462241761,-490.0,0.00024657,2]
[366797398,1750462241770,-250.0,0.00024657,2]
[366797399,1750462241780,-490.0,0.00024657,2]
[366797400,1750462241790,-309.99091988,0.00024657,2]
[366797401,1750462241800,-500.0,0.00024657,2]
[366797402,1750462241809,-490.0,0.00024657,2]
[366797403,1750462241819,-490.0,0.00024657,2]
[366797404,1750462241829,-490.0,0.00024657,2]
[366797405,1750462241839,-490.0,0.00024657,2]
[366797406,1750462241850,-490.0,0.00024657,2]
[366797407,1750462241860,-490.0,0.00024657,2]
[366797408,1750462241870,-490.0,0.00024657,2]
[366797409,1750462241881,-490.0,0.00024657,2]
[366797410,1750462241890,-490.0,0.00024657,2]
[366797411,1750462241901,-490.0,0.00024657,2]
[366797412,1750462241911,-490.0,0.00024657,2]
[366797413,1750462241921,-490.0,0.00024657,2]
[366797414,1750462241932,-490.0,0.00024657,2]
[366797415,1750462241942,-490.0,0.00024657,2]
[366797416,1750462241953,-490.0,0.00024657,2]
[366797417,1750462241963,-490.0,0.00024657,2]
[366797418,1750462241973,-490.0,0.00024657,2]
[366797419,1750462241983,-490.0,0.00024657,2]
[366797420,1750462241994,-490.0,0.00024657,2]
[366797421,1750462242004,-490.0,0.00024657,2]
[366797422,1750462242014,-490.0,0.00024657,2]
[366797423,1750462242025,-350.0,0.00024657,2]
[366797424,1750462242035,-490.0,0.00024657,2]
[366797425,1750462242046,-490.0,0.00024657,2]
[366797426,1750462242056,-350.0,0.00024657,2]
[366797427,1750462242066,-490.0,0.00024657,2]
[366797428,1750462242088,-490.0,0.00024657,2]
[366797429,1750462242099,-490.0,0.00024657,2]
[366797430,1750462242110,-630.0,0.00024657,2]
[366797431,1750462242120,-554.8926189,0.00024657,2]
[366797432,1750462242131,-490.0,0.00024657,2]
[366797433,1750462242142,-490.0,0.00024657,2]
[366797434,1750462242152,-490.0,0.00024657,2]
[366797435,1750462242163,-490.0,0.00024657,2]
[366797436,1750462242173,-490.0,0.00024657,2]
[366797437,1750462242184,-490.0,0.00024657,2]
[366797438,1750462242194,-490.0,0.00024657,2]
[366797439,1750462242205,-490.0,0.00024657,2]
[366797440,1750462242216,-490.0,0.00024657,2]
[366797441,1750462242226,-490.0,0.00024657,2]
[366797443,1750462242237,-490.0,0.00024657,2]
[366797444,1750462242248,-490.0,0.00024657,2]
[366797447,1750462242258,-490.0,0.00024657,2]
[366797448,1750462242269,-627.08,0.00024657,2]
[366797449,1750462242280,-490.0,0.00024657,2]
[366797450,1750462242291,-490.0,0.00024657,2]
[366797451,1750462242301,-490.0,0.00024657,2]
[366797452,1750462242311,-490.0,0.00024657,2]
[366797453,1750462242322,-327.69856244,0.00024657,2]
[366797454,1750462242332,-490.0,0.00024657,2]
[366797455,1750462242343,-490.0,0.00024657,2]
[366797456,1750462242354,-490.0,0.00024657,2]
[366797458,1750462242365,-490.0,0.00024657,2]
[366797459,1750462242376,-490.0,0.00024657,2]
[366797460,1750462242386,-490.0,0.00024657,2]
[366797461,1750462242396,-490.0,0.00024657,2]
[366797462,1750462242407,-490.0,0.00024657,2]
[366797464,1750462242417,-490.0,0.00024657,2]
[366797466,1750462242428,-490.0,0.00024657,2]
[366797467,1750462242439,-490.0,0.00024657,2]
[366797469,1750462242450,-490.0,0.00024657,2]
[366797470,1750462242462,-523.59,0.00024657,2]
[366797471,1750462242473,-264.92,0.00024657,2]
[366797472,1750462242483,-490.0,0.00024657,2]
[366797473,1750462242494,-490.0,0.00024657,2]
[366797474,1750462242505,-490.0,0.00024657,2]
[366797475,1750462242517,-490.0,0.00024657,2]
[366797476,1750462242528,-554.98356975,0.00024657,2]
[366797477,1750462242539,-490.0,0.00024657,2]
[366797478,1750462242550,-490.0,0.00024657,2]
[366797479,1750462242560,-210.0,0.00024657,2]
[366797480,1750462242572,-490.0,0.00024657,2]
[366797481,1750462242584,-490.0,0.00024657,2]
[366797482,1750462242594,-490.0,0.00024657,2]
[366797483,1750462242604,-490.0,0.00024657,2]
[366797484,1750462242614,-490.0,0.00024657,2]
[366797485,1750462242624,-549.49,0.00024657,2]
[366797486,1750462242635,-490.0,0.00024657,2]
[366797487,1750462242647,-490.0,0.00024657,2]
[366797488,1750462242657,-490.0,0.00024657,2]
[366797489,1750462242668,-490.0,0.00024657,2]
[366797490,1750462242680,-490.0,0.00024657,2]
[366797491,1750462242693,-490.0,0.00024657,2]
[366797492,1750462242704,-490.0,0.00024657,2]
[366797493,1750462242715,-490.0,0.00024657,2]
[366797494,1750462242725,-490.0,0.00024657,2]
[366797495,1750462242737,-210.0,0.00024657,2]
[366797496,1750462242747,-490.0,0.00024657,2]
[366797497,1750462242758,-490.0,0.00024657,2]
[366797498,1750462242769,-490.0,0.00024657,2]
[366797500,1750462242780,-490.0,0.00024657,2]
[366797502,1750462242790,-490.0,0.00024657,2]
[366797503,1750462242801,-202.22891854,0.00024657,2]
[366797504,1750462242811,-490.0,0.00024657,2]
[366797505,1750462242822,-490.0,0.00024657,2]
[366797506,1750462242832,-490.0,0.00024657,2]
[366797507,1750462242843,-490.0,0.00024657,2]
[366797508,1750462242853,-490.0,0.00024657,2]
[366797509,1750462242864,-490.0,0.00024657,2]
[366797510,1750462242874,-490.0,0.00024657,2]
[366797511,1750462242885,-490.0,0.00024657,2]
[366797513,1750462242895,-490.0,0.00024657,2]
[366797514,1750462242905,-210.0,0.00024657,2]
[366797515,1750462242915,-490.0,0.00024657,2]
[366797516,1750462242925,-490.0,0.00024657,2]
[366797517,1750462242936,-490.0,0.00024657,2]
[366797518,1750462242947,-490.0,0.00024657,2]
[366797519,1750462242957,-490.0,0.00024657,2]
[366797520,1750462242966,-490.0,0.00024657,2]
[366797521,1750462242977,-490.0,0.00024657,2]
[366797522,1750462242987,-490.0,0.00024657,2]
[366797523,1750462242997,-490.0,0.00024657,2]
[366797524,1750462243008,-490.0,0.00024657,2]
[366797525,1750462243018,-490.0,0.00024657,2]
[366797526,1750462243029,-490.0,0.00024657,2]
[366797528,1750462243040,-490.0,0.00024657,2]
[366797529,1750462243050,-490.0,0.00024657,2]
[366797530,1750462243060,-490.0,0.00024657,2]
[366797531,1750462243070,-490.0,0.00024657,2]
[366797532,1750462243081,-490.0,0.00024657,2]
[366797533,1750462243091,-490.0,0.00024657,2]